[Event "Stockholm Chess Challenge 2019"]
[Site "Stockholm"]
[Date "2019.04.28"]
[Round "5.8"]
[White "Wernberg, Hugo"]
[Black "Trost, Edvin"]
[Result "0-1"]
[ECO "B43"]
[WhiteElo "2009"]
[BlackElo "2075"]
[Annotator "NA"]
[PlyCount "134"]
[EventDate "2019.04.26"]
[EventType "swiss"]
[EventCountry "SWE"]
[SourceTitle "playchess.com"]
[Source "ChessBase"]
[SourceQuality "1"]
[TimeControl "40/5400+30:900+30"]

1. e4 {[%emt 0:00:00]} c5 {[%emt 0:00:24]} 2. Nf3 {[%emt 0:00:00]} e6 {[%emt 0:00:19]} 3. d4 {[%emt 0:00:00]} cxd4 {[%emt 0:00:52]} 4. Nxd4 {[%emt 0:00:00]} a6 {[%emt 0:00:03]} 5. Nc3 {[%emt 0:00:14]} Qc7 {[%emt 0:00:01]} 6. Be3 {[%emt 0:00:13]} Nf6 {[%emt 0:00:42]} 7. a3 {[%emt 0:00:10]} b5 {[%emt 0:00:25]} 8. f3 {[%emt 0:00:56] B43: Sicilian: Kan Variation: 5 Nc3} (8. Bd3 Bb7 9. Qf3 d6 10. Qg3 Nbd7 11. O-O h5 12. h3 h4 13. Qf3 Be7 14. Nb3 d5 15. Bf4 e5 {0-1 (31) Escobar Medina,A (2343)-Iturrizaga Bonelli,E (2663) Medellin 2017}) 8... Bb7 {[%emt 0:00:06]} 9. Qd2 {[%emt 0:00:25]} Nc6 {[%emt 0:00:55]} 10. Nxc6 {[%emt 0:02:31]} dxc6 {[%emt 0:02:10]} 11. O-O-O {[%emt 0:02:09]} Be7 {[%emt 0:00:30]} 12. Qf2 $146 {[%emt 0:08:30]} ({Predecessor:} 12. Bf4 e5 13. Be3 O-O 14. Qf2 c5 15. Bg5 b4 16. Bxf6 bxc3 17. Bxe7 cxb2+ {0-1 (63) Munguia,J-Velasquez,R (1924) Managua 2016}) 12... e5 {[%emt 0:03:18]} 13. Bb6 {[%emt 0:02:15]} Qb8 {[%emt 0:00:35]} 14. Bc5 {[%emt 0:00:48]} Bxc5 {[%emt 0:15:53]} 15. Qxc5 {[%emt 0:00:23]} Nd7 {[%emt 0:00:42]} 16. Qe3 {[%emt 0:11:26]} Nf8 {[%emt 0:00:43]} 17. g3 {[%emt 0:07:34]} Ne6 {[%emt 0:05:04]} 18. Bh3 {[%emt 0:00:37]} Nd4 {[%emt 0:03:18]} 19. f4 {[%emt 0:04:52]} c5 {[%emt 0:05:21]} 20. Nd5 {[%emt 0:03:56]} O-O {[%emt 0:01:50]} 21. c3 {[%emt 0:15:22]} Bxd5 {[%emt 0:01:14]} 22. exd5 {[%emt 0:00:35]} exf4 {[%emt 0:00:15]} 23. Qf2 {[%emt 0:06:30]} fxg3 {[%emt 0:00:39]} 24. hxg3 {[%emt 0:00:10]} Qxg3 {[%emt 0:01:24]} 25. Qxg3 {[%emt 0:00:04]} Ne2+ {[%emt 0:00:06]} 26. Kc2 {[%emt 0:00:10]} Nxg3 {[%emt 0:00:04]} 27. Rhe1 {[%emt 0:00:45]} Rfe8 {[%emt 0:01:58]} 28. d6 {[%emt 0:01:35]} Rxe1 {[%emt 0:00:59]} 29. Rxe1 {[%emt 0:00:03]} Rd8 {[%emt 0:00:30]} 30. d7 {[%emt 0:01:25]} Kf8 {[%emt 0:00:22]} 31. Re5 {[%emt 0:02:44]} c4 {[%emt 0:00:34]} 32. a4 {[%emt 0:01:06]} g6 {[%emt 0:02:44]} 33. axb5 {[%emt 0:01:01]} axb5 {[%emt 0:00:01]} 34. Rxb5 {[%emt 0:01:55]} f5 {[%emt 0:00:12]} 35. Rc5 {[%emt 0:00:39]} Rxd7 {[%emt 0:00:28]} 36. Rxc4 {[%emt 0:00:03]} h5 {[%emt 0:02:50]} 37. b4 {[%emt 0:03:39]} g5 {[%emt 0:17:39]} 38. Bg2 {[%emt 0:10:19]} Rd6 {[%emt 0:08:48]} 39. b5 {[%emt 0:04:35]} Rb6 {[%emt 0:01:49]} 40. Rc8+ {[%emt 0:03:40]} Ke7 {[%emt 0:00:01]} 41. c4 {[%emt 0:16:00]} Kd7 {[%emt 0:16:19]} 42. Rg8 {[%emt 0:03:10]} g4 {[%emt 0:04:05]} 43. Kb3 {[%emt 0:02:18]} h4 {[%emt 0:00:43]} 44. Kb4 {[%emt 0:01:13]} Rh6 {[%emt 0:01:00]} 45. Bc6+ {[%emt 0:00:00]} Rxc6 {[%emt 0:00:00]} 46. Rg7+ {[%emt 0:00:00]} Kd8 {[%emt 0:00:00]} 47. bxc6 {[%emt 0:00:00]} h3 {[%emt 0:00:00]} 48. Rh7 {[%emt 0:00:00]} Ne4 {[%emt 0:00:00]} 49. c7+ {[%emt 0:00:00]} Kc8 {[%emt 0:00:00]} 50. Kb5 {[%emt 0:00:00]} Nf6 {[%emt 0:00:00]} 51. Rh6 {[%emt 0:00:00]} Kxc7 {[%emt 0:00:00]} 52. c5 {[%emt 0:01:42]} f4 {[%emt 0:00:00]} 53. c6 $2 {[%emt 0:00:51]} (53. Rxf6 $11 {and White stays safe.} h2 54. Rf7+ Kd8 55. Rh7) 53... g3 $2 {[%emt 0:00:00]} (53... Ne8 $19 54. Rh8 Nf6) 54. Rxf6 {[%emt 0:00:30]} h2 {[%emt 0:00:00]} (54... g2 $5 55. Rf7+ $8 Kc8 56. Rf8+ Kc7 57. Rf7+ Kd6 58. Rd7+ Ke5 $11) 55. Rf7+ {[%emt 0:00:07]} Kd6 {[%emt 0:00:00]} 56. Rh7 {[%emt 0:02:11]} g2 {[%emt 0:00:00]} 57. Rh6+ {[%emt 0:00:14]} Ke5 {[%emt 0:01:24]} 58. c7 {[%emt 0:00:29]} h1=Q {[%emt 0:00:30]} 59. Re6+ {[%emt 0:00:32]} Kf5 {[%emt 0:02:47]} 60. c8=Q {[%emt 0:00:31]} Qb1+ {[%emt 0:00:13]} 61. Ka6 {[%emt 0:00:57]} Qa2+ {[%emt 0:00:25]} 62. Kb7 {[%emt 0:00:11]} Qxe6 {[%emt 0:00:16]} 63. Qc5+ {[%emt 0:00:14]} Kg4 {[%emt 0:00:15]} 64. Qf2 {[%emt 0:00:39]} Qe4+ {[%emt 0:00:06]} 65. Kc8 {[%emt 0:00:19]} Qf3 {[%emt 0:00:17]} 66. Qc2 {[%emt 0:00:18]} Qh3 {[%emt 0:00:26]} 67. Kc7 {[%emt 0:00:47]} Kg3 {[%emt 0:00:35]} 0-1

[Event "Stockholm Chess Challenge 2019"]
[Site "Stockholm"]
[Date "2019.04.28"]
[Round "5.9"]
[White "Crevatin, Leo"]
[Black "Jeferli, MohammedAli"]
[Result "1-0"]
[ECO "A40"]
[WhiteElo "2208"]
[BlackElo "1881"]
[Annotator "NA"]
[PlyCount "39"]
[EventDate "2019.04.26"]
[EventType "swiss"]
[EventCountry "SWE"]
[SourceTitle "playchess.com"]
[Source "ChessBase"]
[SourceQuality "1"]
[TimeControl "40/5400+30:900+30"]

1. d4 {[%emt 0:00:00]} Nf6 {[%emt 0:00:15]} 2. c4 {[%emt 0:00:35]} e6 {[%emt 0:00:05]} 3. g3 {[%emt 0:00:04]} Bb4+ {[%emt 0:00:23]} 4. Nd2 {[%emt 0:00:19]} c5 {[%emt 0:01:46]} 5. a3 {[%emt 0:00:08]} Bxd2+ {[%emt 0:00:07]} 6. Qxd2 {[%emt 0:00:04]} cxd4 {[%emt 0:07:28]} 7. Nf3 {[%emt 0:03:54]} b6 {[%emt 0:03:31]} 8. Qxd4 {[%emt 0:03:03]} O-O {[%emt 0:06:20]} 9. Bg2 {[%emt 0:00:30]} Bb7 {[%emt 0:01:04]} 10. Bg5 {[%emt 0:06:23]} Nc6 {[%emt 0:00:17]} 11. Qh4 {[%emt 0:06:31]} Na5 {[%emt 0:01:38] [#]} 12. b4 $1 {[%emt 0:04:48]} Nc6 {[%emt 0:01:27]} 13. Rd1 {[%emt 0:06:47]} Rb8 {[%emt 0:04:37] [#]} 14. O-O $1 {[%emt 0:02:09]} Qe7 {[%emt 0:00:38]} 15. b5 {[%emt 0:02:32]} Na5 {[%emt 0:00:45] [#]} 16. Ne5 $18 {[%emt 0:00:52]} d6 {[%emt 0:03:03]} 17. Ng4 {[%emt 0:00:37]} Bxg2 {[%emt 0:01:55]} 18. Bxf6 {[%emt 0:05:05]} gxf6 {[%emt 0:02:31]} 19. Kxg2 {[%emt 0:01:25]} Kg7 {[%emt 0:01:32]} 20. Qh6+ {[%emt 0:00:08]} 1-0

[Event "Stockholm Chess Challenge 2019"]
[Site "Stockholm"]
[Date "2019.04.29"]
[Round "6.6"]
[White "Trost, Edvin"]
[Black "Dev, Shah"]
[Result "1/2-1/2"]
[ECO "C80"]
[WhiteElo "2075"]
[BlackElo "2020"]
[Annotator "NA RC"]
[PlyCount "93"]
[EventDate "2019.04.26"]
[EventType "swiss"]
[EventCountry "SWE"]
[SourceTitle "playchess.com"]
[Source "ChessBase"]
[SourceQuality "1"]
[TimeControl "40/5400+30:900+30"]

1. e4 {[%emt 0:00:00]} e5 {[%emt 0:00:38]} 2. Nf3 {[%emt 0:00:00]} Nc6 {[%emt 0:00:06]} 3. Bb5 {[%emt 0:00:16]} a6 {[%emt 0:00:07]} 4. Ba4 {[%emt 0:00:04]} Nf6 {[%emt 0:00:07]} 5. O-O {[%emt 0:00:06]} Nxe4 {[%emt 0:00:06]} 6. d4 {[%emt 0:00:03]} b5 {[%emt 0:00:08]} 7. Bb3 {[%emt 0:00:06]} d5 {[%emt 0:00:06]} 8. dxe5 {[%emt 0:00:04]} Be6 {[%emt 0:00:09]} 9. Nbd2 {[%emt 0:00:09]} Be7 {[%emt 0:00:29]} 10. c3 {[%emt 0:01:21]} Nc5 {[%emt 0:00:07]} 11. Bc2 {[%emt 0:00:21]} d4 {[%emt 0:00:06]} 12. cxd4 {[%emt 0:12:06]} Nxd4 {[%emt 0:00:16]} 13. Nxd4 {[%emt 0:01:41]} Qxd4 {[%emt 0:00:13]} 14. Nf3 {[%emt 0:01:29]} Qxd1 {[%emt 0:00:27]} 15. Rxd1 {[%emt 0:00:35]} O-O {[%emt 0:14:53]} 16. Be3 {[%emt 0:01:24]} Rad8 {[%emt 0:03:15]} 17. Nd4 {[%emt 0:01:01]} Bd7 {[%emt 0:03:11]} 18. Bf5 {[%emt 0:06:17]} Ne6 {[%emt 0:05:45]} 19. Nb3 {[%emt 0:01:28]} Bc6 {[%emt 0:10:44]} 20. Rdc1 {[%emt 0:03:24]} Bd5 {[%emt 0:10:26]} 21. Bxe6 {[%emt 0:00:24]} fxe6 {[%emt 0:01:55]} 22. Rxc7 {[%emt 0:00:20]} Bb4 {[%emt 0:11:28]} 23. Bc5 {[%emt 0:12:09]} Rf4 {[%emt 0:07:35]} 24. g3 {[%emt 0:07:51]} Rc4 {[%emt 0:00:36]} 25. Bxb4 {[%emt 0:01:11]} Rxb4 {[%emt 0:05:44]} 26. Rd1 {[%emt 0:00:02]} Re4 {[%emt 0:04:18]} 27. f4 {[%emt 0:02:40]} Re2 {[%emt 0:04:36]} 28. Rd2 {[%emt 0:02:34]} Rxd2 {[%emt 0:00:12]} 29. Nxd2 {[%emt 0:00:08]} Bxa2 {[%emt 0:00:05]} 30. Ne4 {[%emt 0:00:08]} Bd5 {[%emt 0:04:36]} 31. Nd6 {[%emt 0:00:34]} b4 {[%emt 0:03:23]} 32. Ra7 {[%emt 0:05:28]} Ra8 {[%emt 0:00:20]} 33. Rxa8+ {[%emt 0:00:05]} Bxa8 {[%emt 0:00:08]} 34. Kf2 {[%emt 0:00:04]} a5 {[%emt 0:00:30]} 35. Ke3 {[%emt 0:00:49]} a4 {[%emt 0:00:24]} 36. Kd4 {[%emt 0:01:41]} Bd5 {[%emt 0:00:12]} 37. Nc4 {[%emt 0:25:27]} Kf7 {[%emt 0:02:39]} 38. Ne3 {[%emt 0:00:08]} g6 {[%emt 0:03:46]} 39. g4 {[%emt 0:01:20]} Bb3 {[%emt 0:00:29]} 40. h4 {[%emt 0:00:35]} h5 {[%emt 0:00:57]} 41. g5 {[%emt 0:15:38]} Ke7 {[%emt 0:15:43]} 42. Nf1 {[%emt 0:04:05]} a3 {[%emt 0:00:00]} 43. bxa3 {[%emt 0:00:00]} bxa3 {[%emt 0:00:00]} 44. Kc3 {[%emt 0:00:00]} a2 {[%emt 0:00:00]} 45. Kb2 {[%emt 0:00:00]} Kd7 {[%emt 0:00:00]} 46. Ng3 {[%emt 0:00:00]} Kc6 {[%emt 0:00:00]} 47. Ne4 {[%emt 0:00:00]} 1/2-1/2

[Event "Stockholm Chess Challenge 2019"]
[Site "Stockholm"]
[Date "2019.04.29"]
[Round "6.8"]
[White "Kvaloy, Aksel Bu"]
[Black "Wernberg, Hugo"]
[Result "1-0"]
[ECO "A36"]
[WhiteElo "2138"]
[BlackElo "2009"]
[Annotator "NA RC"]
[PlyCount "47"]
[EventDate "2019.04.26"]
[EventType "swiss"]
[EventCountry "SWE"]
[SourceTitle "playchess.com"]
[Source "ChessBase"]
[SourceQuality "1"]
[TimeControl "40/5400+30:900+30"]

1. c4 {[%emt 0:00:00]} c5 {[%emt 0:00:00]} 2. g3 {[%emt 0:00:42]} g6 {[%emt 0:00:00]} 3. Bg2 {[%emt 0:00:50]} Bg7 4. Nc3 Nc6 {[%emt 0:00:04]} 5. d3 {[%emt 0:01:27]} d6 {[%emt 0:00:52]} 6. e3 {[%emt 0:00:45]} Bxc3+ {[%emt 0:00:56]} 7. bxc3 {[%emt 0:00:09]} Qd7 8. Ne2 b6 9. O-O Bb7 10. e4 O-O-O 11. Nf4 e6 12. a4 Nge7 13. Qe2 Rdg8 14. Rd1 h5 15. h4 Na5 16. Be3 Nec6 17. d4 Qe7 18. d5 Nd8 19. Bh3 Kc7 20. e5 exd5 21. Nxd5+ Bxd5 22. exd6+ Qxd6 23. Bf4 Qxf4 24. Qe7+ 1-0

[Event "Stockholm Chess Challenge 2019"]
[Site "Stockholm"]
[Date "2019.04.30"]
[Round "7.3"]
[White "Siddharth, Jagadeesh"]
[Black "Seo, Jung Min"]
[Result "1-0"]
[ECO "A40"]
[WhiteElo "2132"]
[BlackElo "2386"]
[Annotator "NA"]
[PlyCount "117"]
[EventDate "2019.04.26"]
[EventType "swiss"]
[EventCountry "SWE"]
[SourceTitle "playchess.com"]
[Source "ChessBase"]
[SourceQuality "1"]
[TimeControl "40/5400+30:900+30"]

1. d4 {[%emt 0:00:00]} Nf6 {[%emt 0:05:15]} 2. c4 {[%emt 0:00:00]} e6 {[%emt 0:00:12]} 3. g3 {[%emt 0:00:00]} c5 {[%emt 0:01:01]} 4. Nf3 {[%emt 0:00:07]} cxd4 {[%emt 0:01:36]} 5. Nxd4 {[%emt 0:00:09]} Bc5 {[%emt 0:01:47]} (5... d5 6. Bg2 e5 7. Nb3 d4 8. O-O Nc6 9. Bg5 Be7 10. e3 Bg4 11. Qd2 O-O 12. exd4 exd4 13. Bxc6 bxc6 14. Qxd4 Qc8 15. Re1 Rd8 16. Qe3 {½-½ (26) Li,C (2732)-Dubov,D (2696) Liaocheng 2018}) 6. Nb3 {[%emt 0:01:05] A32: Symmetrical English: 2 Nf3 Nf6 3 d4 cxd4 4 Nxd4 e6} Be7 {[%emt 0:00:45]} 7. Bg2 {[%emt 0:01:23]} Qc7 {[%emt 0:00:19]} 8. N3d2 {[%emt 0:03:19]} Nc6 {[%emt 0:01:26]} 9. O-O {[%emt 0:00:16]} b6 {[%emt 0:00:30]} 10. Nc3 {[%emt 0:01:23]} Bb7 {[%emt 0:00:15]} 11. b3 {[%emt 0:00:52]} O-O {[%emt 0:01:21]} 12. Bb2 {[%emt 0:01:11]} a6 $146 {[%emt 0:01:16]} ({Predecessor:} 12... Rac8 13. Rc1 {0-1 (29) Schuster,B-Richter,M Passau 1995}) 13. Qc2 {[%emt 0:01:58]} Nb4 {[%emt 0:03:28]} 14. Qd1 {[%emt 0:02:34]} Bxg2 {[%emt 0:00:54]} 15. Kxg2 {[%emt 0:00:53]} b5 {[%emt 0:04:08]} 16. a3 {[%emt 0:06:04]} Qb7+ {[%emt 0:02:07]} 17. f3 {[%emt 0:03:23]} Nc6 {[%emt 0:00:08]} 18. e4 {[%emt 0:07:09]} Rfd8 {[%emt 0:09:25]} 19. cxb5 {[%emt 0:14:10]} axb5 {[%emt 0:00:34]} 20. Qe2 {[%emt 0:00:26]} Nd4 {[%emt 0:12:28]} 21. Qd3 {[%emt 0:03:38]} e5 {[%emt 0:00:18]} 22. Ne2 {[%emt 0:01:49]} Nc6 {[%emt 0:04:11]} 23. Nc3 {[%emt 0:06:13]} b4 {[%emt 0:13:45]} 24. axb4 {[%emt 0:05:20]} Nxb4 {[%emt 0:00:16]} 25. Qe2 {[%emt 0:00:25]} Nc2 {[%emt 0:05:48]} 26. Rxa8 {[%emt 0:02:53]} Rxa8 {[%emt 0:01:04]} 27. Qd3 {[%emt 0:01:46]} Nb4 {[%emt 0:02:53]} 28. Qe2 {[%emt 0:01:29]} h6 {[%emt 0:04:23]} 29. Ra1 {[%emt 0:01:20]} Rc8 {[%emt 0:03:03]} 30. Nc4 {[%emt 0:04:55]} Nc6 {[%emt 0:02:34]} 31. Nd5 {[%emt 0:00:28]} Bc5 {[%emt 0:04:17]} 32. Nxf6+ {[%emt 0:02:38]} gxf6 {[%emt 0:00:01]} 33. Qd3 {[%emt 0:00:22]} Rb8 {[%emt 0:01:34]} 34. Ba3 {[%emt 0:02:54]} Bxa3 {[%emt 0:04:40]} 35. Rxa3 {[%emt 0:01:36]} Nd4 {[%emt 0:00:06]} 36. Nd2 {[%emt 0:14:07]} Rc8 {[%emt 0:00:49]} 37. Nc4 {[%emt 0:07:07]} Rb8 {[%emt 0:02:36]} 38. Nd2 {[%emt 0:00:02]} Kg7 {[%emt 0:00:43]} 39. Ra5 {[%emt 0:02:49]} Rc8 {[%emt 0:01:43]} 40. Rd5 {[%emt 0:00:52]} Qb4 {[%emt 0:01:17]} 41. Nc4 {[%emt 0:03:30]} Ra8 {[%emt 0:05:23]} 42. f4 Ra2+ {[%emt 0:01:47]} 43. Kh3 $15 {[%emt 0:01:52]} Qe1 {[%emt 0:08:28]} 44. fxe5 {[%emt 0:00:16]} Qf2 $2 {[%emt 0:05:36]} (44... fxe5 $11 45. Nxe5 d6) 45. exf6+ {[%emt 0:00:53]} ({Not} 45. Rxd4 $2 Qxh2+ 46. Kg4 h5+ 47. Kf4 Qf2+ 48. Qf3 Qxd4 $19) 45... Kg8 {[%emt 0:00:27]} 46. Qxd4 {[%emt 0:00:52]} Qxh2+ {[%emt 0:00:14]} 47. Kg4 {[%emt 0:00:04]} Qe2+ {[%emt 0:00:20]} 48. Kf4 {[%emt 0:01:14]} Qf1+ {[%emt 0:00:53]} 49. Ke5 {[%emt 0:00:56]} Qh3 {[%emt 0:00:03]} 50. Rxd7 {[%emt 0:00:39]} Ra6 {[%emt 0:01:10]} 51. Rd8+ {[%emt 0:08:37]} Kh7 {[%emt 0:00:03]} 52. Kd5 {[%emt 0:00:15]} Qe6+ {[%emt 0:00:49]} 53. Kc5 {[%emt 0:00:01]} Ra7 {[%emt 0:00:20]} 54. Kb4 {[%emt 0:00:29]} Qa6 {[%emt 0:00:05]} 55. Rd7 {[%emt 0:01:08]} Ra8 {[%emt 0:00:49]} 56. Rxf7+ {[%emt 0:00:05]} Kh8 {[%emt 0:00:06]} 57. Qd6 {[%emt 0:01:01]} Qc8 {[%emt 0:00:06]} 58. Rc7 {[%emt 0:01:06]} Qb8+ {[%emt 0:00:18]} 59. Kc3 1-0

[Event "Stockholm Chess Challenge 2019"]
[Site "Stockholm"]
[Date "2019.04.30"]
[Round "7.6"]
[White "Dev, Shah"]
[Black "Savitha Shri B"]
[Result "1/2-1/2"]
[ECO "E85"]
[WhiteElo "2020"]
[BlackElo "1895"]
[Annotator "NA"]
[PlyCount "86"]
[EventDate "2019.04.26"]
[EventType "swiss"]
[EventCountry "SWE"]
[SourceTitle "playchess.com"]
[Source "ChessBase"]
[SourceQuality "1"]
[TimeControl "40/5400+30:900+30"]

1. d4 {[%emt 0:00:30]} Nf6 {[%emt 0:00:00]} 2. c4 {[%emt 0:00:07]} g6 {[%emt 0:00:00]} 3. Nc3 {[%emt 0:00:05]} Bg7 {[%emt 0:00:00]} 4. e4 {[%emt 0:00:05]} d6 {[%emt 0:00:00]} 5. f3 {[%emt 0:00:08]} O-O {[%emt 0:00:04]} 6. Be3 {[%emt 0:00:10]} e5 {[%emt 0:00:05]} 7. Nge2 {[%emt 0:00:05]} Nbd7 {[%emt 0:00:46]} 8. d5 {[%emt 0:01:22]} Ne8 {[%emt 0:04:11]} 9. Qd2 {[%emt 0:02:39]} Nb6 {[%emt 0:07:18]} 10. b3 {[%emt 0:11:52]} Qe7 {[%emt 0:12:39]} 11. O-O-O {[%emt 0:02:52]} c6 {[%emt 0:01:03]} 12. Kb1 {[%emt 0:09:05]} f5 {[%emt 0:03:18]} 13. Nc1 {[%emt 0:12:36]} c5 {[%emt 0:04:47]} 14. h3 {[%emt 0:07:03]} f4 {[%emt 0:01:30]} 15. Bf2 {[%emt 0:00:29]} a5 {[%emt 0:00:40]} 16. a3 {[%emt 0:02:07]} Bd7 {[%emt 0:09:19]} 17. h4 {[%emt 0:23:08]} Nf6 {[%emt 0:05:33]} 18. Bd3 {[%emt 0:04:22]} Nh5 {[%emt 0:01:37]} 19. N3e2 {[%emt 0:01:02]} Nc8 {[%emt 0:05:21]} 20. Na2 {[%emt 0:02:17]} Qf6 {[%emt 0:08:37]} 21. Rdf1 {[%emt 0:11:06]} Na7 {[%emt 0:06:39]} 22. Nac3 {[%emt 0:01:37]} Rf7 {[%emt 0:00:19]} 23. Ka2 {[%emt 0:01:36]} Rb8 {[%emt 0:00:38]} 24. Nb5 {[%emt 0:02:16]} Nxb5 {[%emt 0:04:35]} 25. cxb5 {[%emt 0:00:14]} b6 {[%emt 0:01:29]} 26. Ra1 {[%emt 0:01:08]} Rc8 {[%emt 0:01:57]} 27. Rhc1 {[%emt 0:00:18]} Be8 {[%emt 0:03:35]} 28. Kb1 {[%emt 0:00:47]} Rfc7 {[%emt 0:01:10]} 29. a4 {[%emt 0:01:36]} Qe7 {[%emt 0:00:54]} 30. Qe1 {[%emt 0:00:33]} Bf6 {[%emt 0:00:48]} 31. Ra2 {[%emt 0:01:13]} Qd8 {[%emt 0:02:08]} 32. Rd1 {[%emt 0:00:55]} Rf7 {[%emt 0:01:19]} 33. Qh1 {[%emt 0:00:32]} Kh8 {[%emt 0:01:17]} 34. Qh2 {[%emt 0:00:14]} Be7 {[%emt 0:01:15]} 35. Rg1 {[%emt 0:00:12]} Bd7 {[%emt 0:00:35]} 36. Rc2 {[%emt 0:00:19]} Qc7 {[%emt 0:01:41]} 37. Rcc1 {[%emt 0:00:25]} Rcf8 {[%emt 0:00:04]} 38. Rcf1 {[%emt 0:00:25]} Qd8 {[%emt 0:00:01]} 39. Be1 {[%emt 0:00:22]} Bc8 {[%emt 0:00:53]} 40. Rh1 {[%emt 0:00:21]} Bd7 {[%emt 0:01:11]} 41. Qg1 {[%emt 0:15:57]} Bc8 {[%emt 0:16:21]} 42. Qf2 {[%emt 0:01:19]} Bd7 {[%emt 0:00:29]} 43. Qg1 {[%emt 0:00:00]} Bc8 {[%emt 0:00:00]} 1/2-1/2

[Event "Stockholm Chess Challenge 2019"]
[Site "Stockholm"]
[Date "2019.04.30"]
[Round "7.7"]
[White "Kenneskog, Theodor"]
[Black "Crevatin, Leo"]
[Result "1-0"]
[ECO "D31"]
[WhiteElo "2306"]
[BlackElo "2208"]
[Annotator "NA"]
[PlyCount "83"]
[EventDate "2019.04.26"]
[EventType "swiss"]
[EventCountry "SWE"]
[SourceTitle "playchess.com"]
[Source "ChessBase"]
[SourceQuality "1"]
[TimeControl "40/5400+30:900+30"]

1. d4 {[%emt 0:00:00]} d5 {[%emt 0:00:00]} 2. c4 {[%emt 0:00:00]} e6 {[%emt 0:00:00]} 3. Nc3 {[%emt 0:00:00]} c6 {[%emt 0:00:00]} 4. Nf3 {[%emt 0:00:00]} dxc4 {[%emt 0:00:00]} 5. a4 {[%emt 0:00:00]} Bb4 {[%emt 0:00:00]} 6. e3 {[%emt 0:00:00]} b5 {[%emt 0:00:00]} 7. Bd2 {[%emt 0:00:03]} a5 {[%emt 0:00:01]} 8. axb5 {[%emt 0:00:04]} Bxc3 {[%emt 0:00:05]} 9. Bxc3 {[%emt 0:00:04]} cxb5 {[%emt 0:00:06]} 10. b3 {[%emt 0:00:02]} Bb7 {[%emt 0:00:06]} 11. bxc4 {[%emt 0:00:03]} b4 {[%emt 0:00:08]} 12. Bb2 {[%emt 0:00:04]} Nf6 {[%emt 0:00:06]} 13. Bd3 {[%emt 0:00:04]} O-O {[%emt 0:00:10]} 14. O-O {[%emt 0:00:04]} Nbd7 {[%emt 0:00:03]} 15. Nd2 {[%emt 0:00:12]} Qc7 {[%emt 0:01:45]} 16. f4 {[%emt 0:00:12]} a4 {[%emt 0:08:23]} 17. Rb1 {[%emt 0:00:09]} Rfd8 {[%emt 0:03:12]} 18. Qe2 {[%emt 0:00:39]} Nb6 {[%emt 0:15:15]} 19. e4 {[%emt 0:06:22]} b3 {[%emt 0:07:38]} 20. Ra1 {[%emt 0:00:28]} Qe7 {[%emt 0:10:56]} 21. e5 {[%emt 0:05:42]} Ne8 {[%emt 0:02:01]} 22. Ba3 {[%emt 0:09:27]} Qc7 {[%emt 0:06:44]} 23. Qe3 {[%emt 0:00:34]} Rac8 {[%emt 0:01:57]} 24. f5 {[%emt 0:03:00]} Qc6 {[%emt 0:13:58]} 25. Be4 {[%emt 0:06:42]} Nxc4 {[%emt 0:05:20]} 26. Qh3 {[%emt 0:00:29]} Qxe4 {[%emt 0:06:57]} 27. Nxe4 {[%emt 0:00:07]} Bxe4 {[%emt 0:00:04]} 28. fxe6 {[%emt 0:00:19]} f5 {[%emt 0:02:00]} 29. exf6 {[%emt 0:05:03]} Nxf6 {[%emt 0:00:56]} 30. e7 {[%emt 0:01:05]} Re8 {[%emt 0:00:41]} 31. Qe6+ {[%emt 0:03:28]} Kh8 {[%emt 0:00:34]} 32. Rxf6 {[%emt 0:01:57]} gxf6 {[%emt 0:04:30]} 33. Qxf6+ {[%emt 0:00:05]} Kg8 {[%emt 0:00:02]} 34. Qe6+ {[%emt 0:00:07]} Kh8 {[%emt 0:00:13]} 35. Rc1 {[%emt 0:00:38]} Bd3 {[%emt 0:02:45]} 36. d5 {[%emt 0:01:00]} Rb8 {[%emt 0:00:59]} 37. Rxc4 {[%emt 0:00:14]} b2 {[%emt 0:00:23]} 38. Bxb2+ {[%emt 0:00:59]} Rxb2 {[%emt 0:00:08]} 39. Qf6+ {[%emt 0:00:04]} Kg8 {[%emt 0:00:06]} 40. Rg4+ {[%emt 0:00:04]} Bg6 {[%emt 0:00:08]} 41. Rxg6+ {[%emt 0:15:25]} hxg6 {[%emt 0:15:03]} 42. Qxg6+ {[%emt 0:00:07]} 1-0

[Event "Stockholm Chess Challenge 2019"]
[Site "Stockholm"]
[Date "2019.04.30"]
[Round "7.8"]
[White "Wernberg, Hugo"]
[Black "Jeferli, MohammedAli"]
[Result "1/2-1/2"]
[ECO "C00"]
[WhiteElo "2009"]
[BlackElo "1881"]
[Annotator "NA"]
[PlyCount "44"]
[EventDate "2019.04.26"]
[EventType "swiss"]
[EventCountry "SWE"]
[SourceTitle "playchess.com"]
[Source "ChessBase"]
[SourceQuality "1"]
[TimeControl "40/5400+30:900+30"]

1. e4 {[%emt 0:00:00]} e6 {[%emt 0:00:00]} 2. d4 {[%emt 0:00:00]} d5 {[%emt 0:00:00]} 3. Bd3 {[%emt 0:00:00]} Nf6 {[%emt 0:00:00]} 4. e5 {[%emt 0:00:00]} Nfd7 {[%emt 0:00:00]} 5. c3 {[%emt 0:00:15]} c5 {[%emt 0:00:00]} 6. Ne2 {[%emt 0:00:06]} Qb6 {[%emt 0:00:33]} 7. Nd2 {[%emt 0:00:14]} Nc6 {[%emt 0:00:11]} 8. Nf3 {[%emt 0:00:06]} cxd4 {[%emt 0:00:18]} 9. cxd4 {[%emt 0:00:08]} Bb4+ {[%emt 0:00:14]} 10. Bd2 {[%emt 0:01:15]} f6 {[%emt 0:00:30]} 11. exf6 {[%emt 0:00:09]} Nxf6 {[%emt 0:00:21]} 12. O-O {[%emt 0:03:17]} O-O {[%emt 0:00:53]} 13. Bf4 {[%emt 0:06:48]} Be7 {[%emt 0:21:23]} 14. Rc1 {[%emt 0:07:29]} Bd7 {[%emt 0:03:40]} 15. Ne5 {[%emt 0:02:14]} Rac8 {[%emt 0:03:46]} 16. Bg5 {[%emt 0:09:37]} Nxe5 {[%emt 0:19:20]} 17. dxe5 {[%emt 0:20:33]} Ng4 {[%emt 0:09:47]} 18. Rxc8 {[%emt 0:00:53]} Bxc8 {[%emt 0:00:18]} 19. Bxe7 {[%emt 0:00:45]} Rxf2 {[%emt 0:06:07]} 20. Nd4 {[%emt 0:10:27]} Rxf1+ {[%emt 0:06:47]} 21. Bxf1 {[%emt 0:00:12]} Nxe5 {[%emt 0:04:43]} 22. Kh1 {[%emt 0:05:50]} Qxb2 {[%emt 0:02:01]} 1/2-1/2